{"text_format":"1","workbook":"xlsx","n_sheets":1,"sheets":["AW-Blatt"],"not_rendered":{"charts":0,"images":1,"macros":1,"external_links":0,"defined_names":1,"comments":0,"pivot_tables":0},"unopened":[],"bounds":{"document_bytes":16777216,"sheet_cells":100000,"rows_first":2000,"rows_last":500,"rows_between":2000,"halvings":0,"cell_chars":16384,"cell_head_chars":4096},"cells_cut":0,"cells_raw":0,"read":"whole","date_system":"1900"}

{"sheet":"AW-Blatt","index":0,"n_rows":56,"n_cols":18,"rows_kept":56,"cut":false,"hidden":false,"merged":[[45,2,45,6],[45,9,45,13],[43,1,43,3],[43,8,43,10],[4,8,6,8],[7,2,7,4],[7,7,7,8],[11,1,11,4],[11,8,11,11]]}
[null,"Schützengau Donau-Ries",null,null,null,null,null,null,null,null,null,null,null,null,null,null,null,"Edelweiß Altisheim"]
[null,"www.schuetzengau-donau-ries.de",null,null,null,null,null,null,null,null,null,null,null,null,null,null,null,"Frohsinn Auchsesheim"]
[null,null,null,null,null,null,null,null,null,null,null,null,null,null,null,null,null,"VSG Asbach-Bäumenheim"]
[null,{"$f":"\"Bayrischer-Hiasl-Pokal \"&IF(H8=\"\",\"\",YEAR(H8))","v":"Bayrischer-Hiasl-Pokal "},null,null,null,null,null,null,{"$f":"IF(H8=\"\",\"Rundendatum eintragen (TT.MM.JJJJ)!\",\"\")","v":"Rundendatum eintragen (TT.MM.JJJJ)!"},null,null,null,null,null,null,null,null,"Adler Berg"]
[null,"für LG, LP und Auflage, ausgetragen vom Schützengau Donau-Ries",null,null,null,null,null,null,{"$f":"IF(H8=\"\",\"ò\",\"\")","v":"ò"},null,null,null,null,null,null,null,null,"Sportsch. Bergstetten"]
[null,null,null,null,null,null,null,null,null,null,null,null,null,null,null,null,null,"Kesseltal Bissingen"]
[null,null,null,null,null,null,null,null,null,null,null,null,null,null,null,null,null,"Edelweiß Brachstadt"]
[null,"Auswertungskarte: ",null,null,null,". Runde am",null,null,null,null,null,null,null,null,null,null,null,"Adler Buchdorf-Baierfeld"]
[null,null,null,null,null,null,null,null,null,null,null,null,null,null,null,null,null,"Usseltal Daiting"]
[null,null,null,null,null,null,"Ergebnis:",null,null,null,null,null,null,"Ergebnis:",null,null,null,"Zur Linde Döckingen"]
[null,"Heimmannschaft",null,null,null,null,null,null,"Gastmannschaft",null,null,null,null,null,null,null,null,"Kgl.priv.SG Donauwörth"]
[null,null,null,null,null,null,{"$f":"IF(G44>=7,SUMPRODUCT(SMALL(G16:G42,ROW(1:7))*1),\"\")","v":""},null,null,null,null,null,null,{"$f":"IF(N44>=7,SUMPRODUCT(SMALL(N16:N42,ROW(1:7))*1),\"\")","v":""},null,null,null,"Trowin Druisheim"]
[null,null,null,null,null,"plus (+)",null,null,null,null,null,null,"plus (+)",null,null,null,null,"Rote Rose Ebermergen"]
[null,"Die sieben besten Schützen:","G/P",null,200,"bestes",null,null,"Die sieben besten Schützen:","G/P",null,200,"bestes",null,null,null,null,"Hubertus Eggelstetten"]
[null,"Name:","A","Ringe:","- Ringe","Blattl","Gesamt:",null,"Name:","A","Ringe:","- Ringe","Blattl","Gesamt:",null,null,null,"Lechschützen Ellgau"]
[1,null,null,null,{"$f":"IF(ISBLANK(B16),\"\",200-D16)","v":""},null,{"$f":"IF(ISBLANK(B16),\"\",E16+F16)","v":""},1,null,null,null,{"$f":"IF(ISBLANK(I16),\"\",200-K16)","v":""},null,{"$f":"IF(ISBLANK(I16),\"\",L16+M16)","v":""},null,null,null,"Tell-Grenz Erlingshofen"]
[2,null,null,null,{"$f":"IF(ISBLANK(B17),\"\",200-D17)","v":""},null,"",2,null,null,null,"",null,"",null,null,null,"Frisch-Auf Feldheim"]
[3,null,null,null,"",null,"",3,null,null,null,"",null,"",null,null,null,"St.Seb. Flotzheim"]
[4,null,null,null,"",null,"",4,null,null,null,"",null,"",null,null,null,"Hub.u.Wildsch. Fünfstetten"]
[5,null,null,null,"",null,"",5,null,null,null,"",null,"",null,null,null,"Treffsicher Gansheim"]
[6,null,null,null,"",null,"",6,null,null,null,{"$f":"IF(ISBLANK(I21),\"\",200-K21)","v":""},null,{"$f":"IF(ISBLANK(I21),\"\",L21+M21)","v":""},null,null,null,"Heiterkeit Genderkingen"]
[7,null,null,null,"",null,"",7,null,null,null,"",null,"",null,null,null,"Almrausch Gosheim"]
[8,null,null,null,"",null,"",8,null,null,null,"",null,"",null,null,null,"Stern Graisbach"]
[9,null,null,null,"",null,"",9,null,null,null,"",null,"",null,null,null,"St.Seb. Gundelsheim"]
[10,null,null,null,"",null,"",10,null,null,null,"",null,"",null,null,null,"Tell Gunzenheim"]
[11,null,null,null,"",null,"",11,null,null,null,"",null,"",null,null,null,"Diana Hamlar"]
[12,null,null,null,"",null,"",12,null,null,null,"",null,"",null,null,null,"Kgl.priv.SG Harburg"]
[13,null,null,null,"",null,"",13,null,null,null,"",null,"",null,null,null,"Burgschützen Hoppingen"]
[14,null,null,null,"",null,"",14,null,null,null,"",null,"",null,null,null,"Edelweiß Huisheim"]
[15,null,null,null,"",null,"",15,null,null,null,"",null,"",null,null,null,"Immergrün Itzing"]
[16,null,null,null,"",null,"",16,null,null,null,"",null,"",null,null,null,"Einigkeit Kaisheim"]
[17,null,null,null,"",null,"",17,null,null,null,"",null,"",null,null,null,"Sport-SV Kölburg"]
[18,null,null,null,"",null,"",18,null,null,null,"",null,"",null,null,null,"Adler Marxheim"]
[19,null,null,null,"",null,"",19,null,null,null,"",null,"",null,null,null,"Zur Linde Mauren"]
[20,null,null,null,"",null,"",20,null,null,null,"",null,"",null,null,null,"Gemütlichkeit Mertingen"]
[21,null,null,null,"",null,"",21,null,null,null,"",null,"",null,null,null,"Edelweiß Möhren"]
[22,null,null,null,"",null,"",22,null,null,null,"",null,"",null,null,null,"SG 1858 Monheim"]
[23,null,null,null,"",null,"",23,null,null,null,"",null,"",null,null,null,"Edelweiß Mündling"]
[24,null,null,null,"",null,"",24,null,null,null,"",null,"",null,null,null,"Winterlust Niederschönenfeld"]
[25,null,null,null,"",null,"",25,null,null,null,"",null,"",null,null,null,"Buren Nordendorf"]
[26,null,null,null,"",null,"",26,null,null,null,"",null,"",null,null,null,"Gemütlichkeit Nordheim"]
[27,null,null,null,"",null,"",27,null,null,null,"",null,"",null,null,null,"Altschützen Oberndorf"]
[null,null,null,null,null,null,null,null,null,null,null,null,null,null,null,null,null,"Eichenlaub Oppertshofen"]
[null,"Bem:",null,null," Teilnehmer:",null,{"$f":"COUNTA(B16:B42)","v":0},null,"Bem:",null,null," Teilnehmer:",null,{"$f":"COUNTA(I16:I42)","v":0},null,null,null,"St.Hubertus Otting"]
[null,null,null,null,null,null,null,null,null,null,null,null,null,null,null,null,null,"Kgl.priv.SG Rain"]
[null,null,null,null,null,null,null,null,null,null,null,null,null,null,null,null,null,"Hubertus Riedlingen"]
[null,"Unterschrift Heim","E-Mail-Adresse Heim",null,null,null,null,null,"Unterschrift Gast","E-Mail-Adresse Gast",null,null,null,null,null,null,null,"Altschützen Rögling"]
[null,null,null,null,null,null,null,null,null,null,null,null,null,null,null,null,null,"Alpenrose Ronheim"]
[null,"Ergebnisse sind unverzüglich zu senden an:",null,null,"Franz Müller, Donauwörtherstr. 2, 86663 Asbach-Bäumenheim",null,null,null,null,null,null,null,null,null,null,null,null,"St.Seb. Sulzdorf"]
[null,null,null,"          ","Tel.: 09 06 - 93 63   Fax: 0 32 22 - 2 41 88 14",null,null,null,null,null,null,null,null,null,null,null,null,"Hubertus Schweinspoint"]
[null,null,null,null,null,null,null,null,null,null,null,null,null,null,null,null,null,"Hubertus Tagmersheim"]
[null,"Das Ergebnis kann auch über einen Onlinemelder auf der Gauhomepage gemeldet werden ! ",null,null,null,null,null,null,null,null,null,null,null,null,null,null,null,"Hubertus Tapfheim"]
[null,null,null,null,null,null,null,null,null,null,null,null,null,null,null,null,null,"VSG 1849 Wemding"]
[null,null,null,null,null,null,null,null,null,null,null,null,null,null,null,null,null,"Adler Wörnitzstein"]
[null,null,null,null,null,null,null,null,null,null,null,null,null,null,null,null,null,"St.Martin Wolferstadt"]
[null,null,null,null,null,null,null,null,null,null,null,null,null,null,null,null,null,"Hubertus Zirgesheim"]